fUST/lending_fUST_20250604
["ID","MTS","AMOUNT","RATE_DAILY","PERIOD"]
[364155524,1749021047178,-500.0,0.00021146,2]
[364155526,1749021047189,-440.0,0.00021146,2]
[364155528,1749021047198,-440.0,0.00021146,2]
[364155530,1749021047211,-440.0,0.00021146,2]
[364155532,1749021047221,-440.0,0.00021146,2]
[364155534,1749021047230,-440.0,0.00021146,2]
[364155536,1749021047240,-440.0,0.00021146,2]
[364155538,1749021047249,-440.0,0.00021146,2]
[364155540,1749021047259,-440.0,0.00021146,2]
[364155542,1749021047269,-582.93,0.00021157,2]
[364155544,1749021047279,-440.0,0.00021157,2]
[364155546,1749021047289,-440.0,0.00021157,2]
[364155548,1749021047299,-440.0,0.00021157,2]
[364155550,1749021047308,-440.0,0.00021157,2]
[364155552,1749021047318,-440.0,0.00021158,2]
[364155554,1749021047327,-440.0,0.00021158,2]
[364155556,1749021047337,-296.849475,0.00021158,2]
[364155558,1749021047346,-440.0,0.00021158,2]
[364155560,1749021047356,-440.0,0.00021158,2]
[364155562,1749021047365,-440.0,0.00021158,2]
[364155564,1749021047375,-3004.53,0.00021158,2]
[364155566,1749021047385,-440.0,0.00021158,2]
[364155568,1749021047395,-440.0,0.00021158,2]
[364155570,1749021047404,-440.0,0.00021158,2]
[364155572,1749021047414,-380.0,0.00021158,2]
[364155574,1749021047423,-440.0,0.00021158,2]
[364155576,1749021047436,-440.0,0.00021158,2]
[364155578,1749021047447,-380.0,0.00021158,2]
[364155580,1749021047456,-440.0,0.00021158,2]
[364155582,1749021047467,-380.0,0.00021158,2]
[364155584,1749021047478,-380.0,0.00021158,2]
[364155586,1749021047488,-440.0,0.00021158,2]
[364155588,1749021047498,-500.0,0.0002142,2]
[364155590,1749021047508,-440.0,0.0002142,2]
[364155592,1749021047518,-440.0,0.0002142,2]
[364155594,1749021047528,-440.0,0.0002142,2]
[364155596,1749021047537,-440.0,0.0002142,2]
[364155598,1749021047547,-440.0,0.0002142,2]
[364155600,1749021047558,-440.0,0.0002142,2]
[364155602,1749021047568,-440.0,0.0002142,2]
[364155604,1749021047578,-440.0,0.0002142,2]
[364155606,1749021047588,-700.0,0.00021427,2]
[364155608,1749021047598,-582.93,0.00021431,2]
[364155610,1749021047608,-440.0,0.00021431,2]
[364155612,1749021047617,-440.0,0.00021431,2]
[364155613,1749021047627,-440.0,0.00021431,2]
[364155615,1749021047638,-440.0,0.00021431,2]
[364155617,1749021047648,-390.0,0.00021432,2]
[364155619,1749021047658,-410.85137291,0.00021432,2]
[364155621,1749021047669,-440.0,0.00021432,2]
[364155623,1749021047679,-420.0,0.00021432,2]
[364155625,1749021047691,-400.0,0.00021432,2]
[364155627,1749021047700,-3004.53,0.00021432,2]
[364155629,1749021047710,-440.0,0.00021432,2]
[364155631,1749021047719,-440.0,0.00021432,2]
[364155633,1749021047728,-418.87063163,0.00021432,2]
[364155635,1749021047737,-440.0,0.00021432,2]
[364155637,1749021047746,-301.26,0.00021432,2]
[364155639,1749021047756,-360.0,0.00021432,2]
[364155641,1749021047765,-440.0,0.00021432,2]
[364155643,1749021047774,-606.055669,0.00021434,2]
[364155644,1749021047783,-606.055669,0.00021434,2]
[364155647,1749021047792,-158.285125,0.00021434,2]
[364155649,1749021047801,-158.285125,0.00021434,2]
[364155651,1749021047811,-160.76159,0.00021434,2]
[364155653,1749021047819,-160.76159,0.00021434,2]
[364155655,1749021047829,-264.716561,0.00021434,2]
[364155657,1749021047839,-151.0,0.00021473,2]
[364155658,1749021047848,-152.746135,0.00021486,2]
[364155659,1749021047857,-606.055669,0.00021486,2]
[364155661,1749021047867,-606.055669,0.00021486,2]
[364155663,1749021047876,-158.285125,0.00021486,2]
[364155665,1749021047885,-158.285125,0.00021486,2]
[364155667,1749021047895,-160.76159,0.00021486,2]
[364155669,1749021047904,-160.76159,0.00021486,2]
[364155671,1749021047914,-933.707543,0.00021559,3]
[364155673,1749021047923,-1973.57121851,0.00021599,2]
[364155675,1749021047933,-163.54478,0.0002167,2]
[364155676,1749021047942,-163.54478,0.0002167,2]
[364155677,1749021047952,-151.0,0.0002167,2]
[364155678,1749021047962,-263.022563,0.0002167,2]
[364155680,1749021047971,-606.055669,0.00021681,2]
[364155681,1749021047981,-606.055669,0.00021681,2]
[364155683,1749021047990,-158.285125,0.00021681,2]
[364155685,1749021048000,-158.285125,0.00021681,2]
[364155686,1749021048009,-160.76159,0.00021681,2]
[364155687,1749021048019,-160.76159,0.00021681,2]
[364155688,1749021048029,-505.08353379,0.00021685,2]
[364155689,1749021048038,-500.0,0.00021685,2]
[364155690,1749021048048,-347.16,0.00021688,3]
[364155691,1749021048056,-173.58,0.00021688,3]
[364155692,1749021048066,-520.76,0.00021688,3]
[364155693,1749021048075,-500.0,0.00021694,2]
[364155694,1749021048085,-380.0,0.00021694,2]
[364155695,1749021048094,-380.0,0.00021694,2]
[364155696,1749021048104,-380.0,0.00021694,2]
[364155697,1749021048115,-380.0,0.00021694,2]
[364155698,1749021048125,-380.0,0.00021694,2]
[364155699,1749021048133,-440.0,0.00021694,2]
[364155700,1749021048142,-380.0,0.00021694,2]
[364155701,1749021048152,-387.62072255,0.00021694,2]
[364155702,1749021048161,-694.31,0.00021696,3]
[364155703,1749021048170,-545.76886917,0.00021697,2]
[364155704,1749021048180,-434.00346879,0.00021697,2]
[364155705,1749021048189,-539.51021763,0.00021697,2]
[364155706,1749021048198,-500.0,0.00021697,2]
[364155707,1749021048207,-341702.08046321,0.00021698,2]
[364155845,1749021363168,184.046707,0.00020636,61]
[364155846,1749021363377,184.046707,0.00020636,120]
[364155847,1749021594230,810.0,0.00024658,120]
[364155848,1749021636201,172.01327,0.00013699,2]
[364156780,1749022246116,-172.01327,0.00020187,2]
[364156782,1749022246126,-127.98673,0.00020331,2]
[364158241,1749022785467,-300.0,0.00018899,2]
[364158242,1749022785494,-17650.0,0.00018899,2]
[364158244,1749022799927,163.021882,0.00013699,2]
[364158245,1749022815157,1516.0,0.00024657,120]
[364159060,1749023432103,-5000.0,0.00018338,2]
[364159061,1749023432113,-430.0,0.00018899,2]
[364159062,1749023432124,-109.12399692,0.00018899,2]
[364159075,1749023437933,-320.87600308,0.00018899,2]
[364159077,1749023437943,-440.47145286,0.00018899,2]
[364159079,1749023437953,-430.0,0.00018899,2]
[364159080,1749023437962,-440.0,0.00018899,2]
[364159082,1749023437971,-430.0,0.00018899,2]
[364159084,1749023437981,-440.0,0.00018899,2]
[364159086,1749023437990,-440.0,0.00018899,2]
[364159088,1749023438000,-1786.47890503,0.000189,2]
[364159090,1749023438009,-150.28,0.00019173,2]
[364159092,1749023438019,-440.0,0.00019173,2]
[364159094,1749023438029,-420.0,0.00019173,2]
[364159096,1749023438038,-186.276195,0.00019178,2]
[364159098,1749023438048,-440.0,0.00019446,2]
[364159099,1749023438057,-430.0,0.00019446,2]
[364159102,1749023438067,-410.0,0.00019447,2]
[364159103,1749023438077,-1076.0563593,0.00019547,2]
[364159106,1749023438087,-440.0,0.0001972,2]
[364159107,1749023438096,-166.488,0.00019778,2]
[364159109,1749023438107,-408.20769108,0.000199,2]
[364159111,1749023438116,-160.0,0.00019914,2]
[364159114,1749023438127,-2035.84989538,0.00019993,3]
[364159117,1749023438140,-1567.45825683,0.00019993,3]
[364159119,1749023438150,-7403.7590977,0.00019994,2]
[364159586,1749023443173,-40075.61267472,0.00019994,2]
[364159588,1749023443182,-430.0,0.00019994,2]
[364159590,1749023443191,-440.0,0.00019994,2]
[364159592,1749023443199,-508.86,0.00019994,2]
[364159594,1749023443207,-440.0,0.00019994,2]
[364159595,1749023443215,-440.0,0.00019994,2]
[364159597,1749023443223,-440.0,0.00019994,2]
[364159599,1749023443234,-430.0,0.00019994,2]
[364159601,1749023443246,-430.0,0.00019994,2]
[364159603,1749023443256,-440.0,0.00019994,2]
[364159605,1749023443266,-779.1,0.00019994,2]
[364159607,1749023443278,-538.15264217,0.00019994,2]
[364159609,1749023443290,-440.0,0.00019994,2]
[364159611,1749023443301,-184.65071865,0.00019994,2]
[364159613,1749023443312,-408.20769092,0.00020072,2]
[364159615,1749023443326,-163.021882,0.00020187,2]
[364159617,1749023443338,-408.20769092,0.00020245,2]
[364159619,1749023443348,-440.0,0.00020268,2]
[364159621,1749023443359,-508.86,0.00020268,2]
[364159623,1749023443371,-440.0,0.00020268,2]
[364159625,1749023443382,-440.0,0.00020268,2]
[364159627,1749023443393,-440.0,0.00020268,2]
[364159629,1749023443403,-440.0,0.00020268,2]
[364159631,1749023443414,-779.1,0.00020268,2]
[364159634,1749023443425,-440.0,0.00020268,2]
[364159636,1749023443435,-600.0,0.00020331,2]
[364159638,1749023443444,-500.0,0.00020371,2]
[364159640,1749023443455,-500.0,0.00020371,2]
[364159642,1749023443464,-389.79435841,0.00020371,2]
[364159644,1749023443474,-500.0,0.00020371,2]
[364159645,1749023443484,-500.0,0.00020371,2]
[364159647,1749023443496,-408.20769092,0.00020417,3]
[364159648,1749023443508,-658.82,0.000205,2]
[364159650,1749023443519,-378.37,0.00020542,2]
[364159652,1749023443530,-508.86,0.00020542,2]
[364159654,1749023443542,-440.0,0.00020542,2]
[364159656,1749023443554,-440.0,0.00020542,2]
[364159658,1749023443566,-440.0,0.00020542,2]
[364159660,1749023443578,-440.0,0.00020542,2]
[364159661,1749023443589,-779.1,0.00020542,2]
[364159662,1749023443600,-440.0,0.00020542,2]
[364159664,1749023443611,-408.20769092,0.0002059,3]
[364159665,1749023443621,-184.046707,0.00020636,2]
[364159667,1749023443631,-408.20769092,0.00020762,3]
[364159669,1749023443644,-229.45591648,0.00020795,2]
[364159671,1749023443655,-430.0,0.00020798,2]
[364159673,1749023443666,-430.0,0.00020798,2]
[364159675,1749023443678,-400.93877575,0.00020798,2]
[364159677,1749023443690,-440.0,0.00020798,2]
[364159679,1749023443701,-440.0,0.00020798,2]
[364159681,1749023443714,-3858.5,0.00020798,2]
[364159683,1749023443726,-440.0,0.00020798,2]
[364159685,1749023443737,-440.0,0.00020798,2]
[364159687,1749023443749,-508.86,0.00020816,2]
[364159689,1749023443761,-440.0,0.00020816,2]
[364159691,1749023443774,-440.0,0.00020816,2]
[364159693,1749023443786,-440.0,0.00020816,2]
[364159695,1749023443798,-400.0,0.00020816,2]
[364159697,1749023443810,-779.1,0.00020816,2]
[364159699,1749023443820,-440.0,0.00020816,2]
[364159700,1749023443830,-423.69433488,0.00020875,2]
[364159702,1749023443840,-160.0,0.00020875,2]
[364159704,1749023443850,-207.4,0.00020895,2]
[364159706,1749023443860,-5000.0,0.00020895,2]
[364159708,1749023443870,-504.21706496,0.00020919,2]
[364159710,1749023443880,-500.0,0.00020919,2]
[364159712,1749023443892,-1000.0,0.00020919,2]
[364159714,1749023443903,-500.0,0.00020919,2]
[364159716,1749023443915,-408.20769092,0.00020934,4]
[364159718,1749023443926,-322.76,0.0002099,10]
[364159720,1749023443938,-5504.07907229,0.00021,2]
[364159722,1749023443948,-440.0,0.00021072,2]
[364159723,1749023443959,-440.0,0.00021072,2]
[364159725,1749023443969,-3858.5,0.00021072,2]
[364159727,1749023443979,-440.0,0.00021072,2]
[364159729,1749023443990,-440.0,0.00021072,2]
[364159731,1749023444000,-508.86,0.0002109,2]
[364159733,1749023444011,-390.0,0.0002109,2]
[364159735,1749023444022,-440.0,0.0002109,2]
[364159737,1749023444032,-440.0,0.0002109,2]
[364159739,1749023444043,-779.1,0.0002109,2]
[364159741,1749023444053,-440.0,0.0002109,2]
[364159743,1749023444063,-408.20769092,0.00021107,4]
[364159745,1749023444074,-408.20769092,0.00021279,5]
[364159747,1749023444083,-410.0,0.00021346,2]
[364159749,1749023444093,-440.0,0.00021346,2]
[364159750,1749023444103,-3858.5,0.00021346,2]
[364159752,1749023444113,-440.0,0.00021346,2]
[364159754,1749023444124,-440.0,0.00021346,2]
[364159756,1749023444135,-508.86,0.00021364,2]
[364159758,1749023444145,-449.32,0.00021364,2]
[364159760,1749023444156,-440.0,0.00021364,2]
[364159762,1749023444167,-779.1,0.00021364,2]
[364159764,1749023444178,-494.02007907,0.00021364,2]
[364159766,1749023444188,-600.0,0.00021427,2]
[364159768,1749023444199,-408.20769092,0.00021452,5]
[364159770,1749023444209,-1000.0,0.00021467,2]
[364159772,1749023444220,-2861.61,0.00021482,2]
[364159774,1749023444233,-5000.0,0.00021526,2]
[364159776,1749023444243,-824.53,0.00021528,3]
[364159777,1749023444253,-63370.46020913,0.00021538,2]
[364159891,1749023446070,-14427.15655545,0.00021538,2]
[364159892,1749023446163,-1301.39999999,0.00021538,2]
[364163381,1749023807013,163.067828,0.00013699,2]
[364163385,1749023930743,-300.0,0.00018898,2]
[364163386,1749023931274,-440.0,0.00018899,2]
[364163387,1749023931298,-440.0,0.00018899,2]
[364163388,1749023931321,-440.0,0.00018899,2]
[364163389,1749023931345,-440.0,0.00018899,2]
[364163390,1749023931367,-440.0,0.00018899,2]
[364163391,1749023931391,-440.0,0.00018899,2]
[364163392,1749023931415,-629.8,0.00018899,2]
[364163393,1749023931436,-440.0,0.00018899,2]
[364163394,1749023931459,-230.07704568,0.00018899,2]
[364163395,1749023931485,-440.0,0.00019173,2]
[364163396,1749023931511,-440.0,0.00019173,2]
[364163397,1749023931535,-440.0,0.00019173,2]
[364163398,1749023931560,-440.0,0.00019173,2]
[364163399,1749023931584,-440.0,0.00019173,2]
[364163400,1749023931611,-440.0,0.00019173,2]
[364163401,1749023931636,-629.8,0.00019173,2]
[364163402,1749023931658,-440.0,0.00019173,2]
[364163403,1749023931682,-1254.62252141,0.00019438,2]
[364163404,1749023931705,-300.0,0.00019445,2]
[364163405,1749023931726,-440.71709384,0.00019446,2]
[364163406,1749023931748,-374.59,0.00019446,2]
[364163407,1749023931774,-440.0,0.00019447,2]
[364163408,1749023931798,-440.0,0.00019447,2]
[364163409,1749023931823,-440.0,0.00019447,2]
[364163410,1749023931849,-440.0,0.00019447,2]
[364163411,1749023931873,-410.0,0.00019447,2]
[364163412,1749023931898,-440.0,0.00019447,2]
[364163413,1749023931923,-629.8,0.00019447,2]
[364163414,1749023931947,-440.0,0.00019447,2]
[364163415,1749023931975,427.59333907,0.00018899,2]
[364163416,1749023939651,730.0,0.00024658,120]
[364163422,1749024248053,-399.35336958,0.000248,120]
[364163423,1749024248594,-10322.3463177,0.00025,120]
[364163424,1749024248627,-170.0276641,0.00025,120]
[364163425,1749024248659,-52137.38477333,0.00025,120]
[364163426,1749024248694,-400.0,0.00025,120]
[364163427,1749024248726,-157.0,0.00025,120]
[364163428,1749024258049,-100000.0,0.00023,30]
[364163429,1749024258081,-50000.0,0.00023,30]
[364163430,1749024258117,-251.847141,0.00023,30]
[364163431,1749024258154,-933.8114249,0.00023425,30]
[364163432,1749024258191,-4298.0,0.00024,60]
[364163433,1749024258223,-151215.14960816,0.00024,30]
[364163434,1749024258255,-253572.67329367,0.00024,30]
[364163435,1749024258287,-77400.198,0.00024,30]
[364163436,1749024258326,-169.22,0.00024,31]
[364163437,1749024258363,-169.22,0.00024,31]
[364163438,1749024258400,-169.22,0.00024,31]
[364163439,1749024258439,-169.22,0.00024,31]
[364163440,1749024258476,-169.22,0.00024,31]
[364163441,1749024258514,-169.22,0.00024,31]
[364163442,1749024258551,-169.22,0.00024,31]
[364163443,1749024258587,-169.22,0.00024,31]
[364163444,1749024258623,-169.22,0.00024,31]
[364163445,1749024258660,-169.22,0.00024,31]
[364163446,1749024258695,-169.22,0.00024,31]
[364163447,1749024258731,-169.22,0.00024,31]
[364163448,1749024258769,-169.22,0.00024,31]
[364163449,1749024258804,-169.22,0.00024,31]
[364163450,1749024258839,-169.22,0.00024,31]
[364163451,1749024258873,-169.22,0.00024,31]
[364163452,1749024258904,-3679.1327009,0.00024062,30]
[364163453,1749024259074,-799.06103641,0.00024135,30]
[364163454,1749024259110,-28926.13911584,0.0002465,30]
[364163455,1749024259163,-169.22,0.000247,31]
[364163456,1749024259201,-169.22,0.000247,31]
[364163457,1749024259240,-169.22,0.000247,31]
[364163458,1749024259276,-169.22,0.000247,31]
[364163459,1749024259314,-169.22,0.000247,31]
[364163460,1749024259351,-169.22,0.000247,31]
[364163461,1749024259386,-169.22,0.000247,31]
[364163462,1749024259423,-169.22,0.000247,31]
[364163463,1749024259462,-169.22,0.000247,31]
[364163464,1749024259499,-169.22,0.000247,31]
[364163465,1749024259535,-169.22,0.000247,31]
[364163466,1749024259572,-169.22,0.000247,31]
[364163467,1749024259608,-169.22,0.000247,31]
[364163468,1749024259645,-169.22,0.000247,31]
[364163469,1749024259681,-169.22,0.000247,31]
[364163470,1749024259717,-169.22,0.000247,31]
[364163471,1749024259754,-169.22,0.000247,31]
[364163472,1749024259788,-169.22,0.000247,31]
[364163473,1749024259823,-169.22,0.000247,31]
[364163474,1749024259860,-169.22,0.000247,31]
[364163475,1749024259895,-169.22,0.000247,31]
[364163476,1749024259931,-169.22,0.000247,31]
[364163477,1749024259966,-169.22,0.000247,31]
[364163478,1749024260001,-169.22,0.000247,31]
[364163479,1749024260035,-143178.78891049,0.00025,30]
[364163480,1749024260066,-423.63107087,0.00025,30]
[364163481,1749024260096,-39250.55,0.00025,30]
[364163482,1749024260128,-717.14588174,0.00025,30]
[364163483,1749024260158,-500.0,0.00025,30]
[364163484,1749024260188,-987760.60906825,0.00025,30]
[364163485,1749024260220,-229.45591648,0.00025,30]
[364163486,1749024260250,-229.45591648,0.00025,30]
[364163487,1749024272432,2700.0,0.00025,120]
[364163489,1749024308357,229.45591648,0.00025,30]
[364163490,1749024319668,155.0,0.00025,30]
[364163526,1749024451551,200.0,0.00024518,120]
[364163530,1749024473164,1605.84288,0.00025,120]
[364163531,1749024511115,200.0,0.00023315,120]
[364163558,1749024632190,200.0,0.00023705,120]
[364163559,1749024632509,-160.0,0.00018895,2]
[364163560,1749024632519,-440.0,0.00018899,2]
[364163561,1749024632529,-459.92054578,0.00018899,2]
[364163562,1749024632539,-1000.0,0.00019,2]
[364163563,1749024632549,-204.18874402,0.00019151,2]
[364163564,1749024632559,-440.0,0.00019173,2]
[364163565,1749024632569,-576.33870026,0.00019446,2]
[364163566,1749024632579,-430.0,0.00019446,2]
[364163567,1749024632589,-430.0,0.00019446,2]
[364163568,1749024632599,-430.0,0.00019446,2]
[364163569,1749024632610,-483.17,0.00019446,2]
[364163570,1749024632621,-440.0,0.00019446,2]
[364163571,1749024632631,-430.0,0.00019446,2]
[364163572,1749024632641,-430.0,0.00019446,2]
[364163573,1749024632651,-436.72853739,0.00019446,2]
[364163574,1749024632661,-357.9206644,0.00019446,2]
[364163575,1749024632671,-430.0,0.00019446,2]
[364163576,1749024632681,-434.9559437,0.00019446,2]
[364163577,1749024632691,-430.0,0.00019446,2]
[364163578,1749024632702,-440.0,0.00019447,2]
[364163579,1749024632714,-292.38738457,0.00019447,2]
[364163580,1749024632725,-450.23597364,0.0001972,2]
[364163581,1749024632735,-440.0,0.00019721,2]
[364163582,1749024632747,-603.6436589,0.00019754,2]
[364163583,1749024632758,-423.69433488,0.00019954,2]
[364163584,1749024632769,-440.0,0.00019991,2]
[364163585,1749024632779,-571.49,0.00019991,2]
[364163586,1749024632789,-440.0,0.00019991,2]
[364163587,1749024632798,-440.0,0.00019991,2]
[364163588,1749024632809,-491.62943883,0.00019992,2]
[364163589,1749024632820,-430.0,0.00019992,2]
[364163590,1749024632829,-440.0,0.00019992,2]
[364163591,1749024632840,-762.77,0.00019992,2]
[364163592,1749024632850,-440.0,0.00019992,2]
[364163593,1749024632859,-430.0,0.00019992,2]
[364163594,1749024632873,-440.0,0.00019992,2]
[364163595,1749024632883,-430.0,0.00019992,2]
[364163596,1749024632893,-430.0,0.00019992,2]
[364163597,1749024632903,-840.66,0.00019992,2]
[364163598,1749024632914,-440.0,0.00019992,2]
[364163599,1749024632923,-430.0,0.00019992,2]
[364163600,1749024632933,-440.0,0.00019992,2]
[364163601,1749024632943,-440.0,0.00019992,2]
[364163602,1749024632955,-430.0,0.00019992,2]
[364163603,1749024632966,-430.0,0.00019992,2]
[364163604,1749024632975,-440.0,0.00019992,2]
[364163605,1749024632985,-440.0,0.00019992,2]
[364163606,1749024632995,-440.0,0.00019992,2]
[364163607,1749024633005,-440.0,0.00019993,2]
[364163608,1749024633014,-440.0,0.00019993,2]
[364163609,1749024633024,-551.08,0.00019993,2]
[364163610,1749024633034,-440.0,0.00019993,2]
[364163611,1749024633044,-440.0,0.00019993,2]
[364163612,1749024633054,-440.0,0.00019993,2]
[364163613,1749024633064,-165.02,0.00019994,2]
[364163614,1749024633074,-243.29616574,0.00019994,2]
[364163615,1749024633085,-375.69244915,0.00019995,2]
[364163616,1749024633095,-1000.0,0.0002,2]
[364163617,1749024633106,-186.276195,0.00020225,2]
[364163618,1749024633116,-440.0,0.00020265,2]
[364163619,1749024633126,-571.49,0.00020265,2]
[364163620,1749024633139,-440.0,0.00020265,2]
[364163621,1749024633149,-440.0,0.00020265,2]
[364163622,1749024633159,-440.0,0.00020266,2]
[364163623,1749024633169,-762.77,0.00020266,2]
[364163624,1749024633179,-440.0,0.00020266,2]
[364163625,1749024633190,-440.0,0.00020266,2]
[364163626,1749024633201,-840.66,0.00020266,2]
[364163627,1749024633211,-440.0,0.00020266,2]
[364163628,1749024633221,-464.52,0.00020266,2]
[364163629,1749024633231,-568.45399973,0.00020266,2]
[364163630,1749024633241,-420.0,0.00020266,2]
[364163631,1749024633251,-440.0,0.00020266,2]
[364163632,1749024633261,-440.0,0.00020266,2]
[364163633,1749024633272,-440.0,0.00020267,2]
[364163634,1749024633282,-390.0,0.00020267,2]
[364163635,1749024633292,-551.08,0.00020267,2]
[364163636,1749024633302,-440.0,0.00020267,2]
[364163637,1749024633312,-440.0,0.00020267,2]
[364163638,1749024633322,-440.0,0.00020267,2]
[364163639,1749024633332,-514.96168939,0.0002032,2]
[364163640,1749024633500,-500.99961344,0.0002032,2]
[364163641,1749024633513,-2777.7,0.0002032,2]
[364163642,1749024633523,-2777.7,0.0002032,2]
[364163643,1749024633533,-2777.7,0.0002032,2]
[364163644,1749024633545,-2777.7,0.0002032,2]
[364163645,1749024633557,-2777.7,0.0002032,2]
[364163646,1749024633568,-2777.7,0.0002032,2]
[364163647,1749024633579,-2777.7,0.0002032,2]
[364163648,1749024633590,-2777.7,0.0002032,2]
[364163649,1749024633600,-2777.7,0.0002032,2]
[364163650,1749024633610,-2777.7,0.0002032,2]
[364163651,1749024633620,-500.0,0.0002032,2]
[364163652,1749024633630,-506.3374252,0.00020418,2]
[364163653,1749024633640,-500.0,0.00020418,2]
[364163654,1749024633650,-500.0,0.00020539,2]
[364163655,1749024633660,-450.31995003,0.00020539,2]
[364163656,1749024633671,-440.0,0.00020539,2]
[364163657,1749024633680,-571.49,0.00020539,2]
[364163658,1749024633690,-440.0,0.00020539,2]
[364163659,1749024633700,-440.0,0.00020539,2]
[364163660,1749024633710,-2644.0,0.0002054,2]
[364163661,1749024633720,-2644.0,0.0002054,2]
[364163662,1749024633730,-2644.0,0.0002054,2]
[364163663,1749024633740,-2644.0,0.0002054,2]
[364163664,1749024633750,-2644.0,0.0002054,2]
[364163665,1749024633760,-1867.46015588,0.0002054,2]
[364163666,1749024633774,-776.53984412,0.0002054,2]
[364163667,1749024633785,-2460.01872129,0.0002054,2]
[364163678,1749024638132,153.89,0.000247,31]
[364163679,1749024638188,153.89,0.000247,31]
[364163680,1749024638243,153.89,0.000247,31]
[364163681,1749024638303,153.89,0.000247,31]
[364163682,1749024638372,153.89,0.000247,31]
[364163683,1749024638427,153.89,0.000247,31]
[364163684,1749024638498,153.89,0.000247,31]
[364163685,1749024638568,153.89,0.000247,31]
[364163686,1749024638651,153.89,0.000247,31]
[364163687,1749024638668,-183.98127871,0.0002054,2]
[364163688,1749024638679,-440.0,0.0002054,2]
[364163689,1749024638694,-396.01872129,0.0002054,2]
[364163690,1749024638714,-366.75127871,0.0002054,2]
[364163691,1749024638727,-162.14581247,0.0002054,2]
[364163692,1749024638790,153.89,0.000247,31]
[364163693,1749024638809,-277.85418753,0.0002054,2]
[364163694,1749024638823,-149.52962959,0.0002054,2]
[364163695,1749024638839,-290.47037041,0.0002054,2]
[364163696,1749024638851,-440.0,0.0002054,2]
[364163697,1749024638864,-440.0,0.0002054,2]
[364163698,1749024638880,-840.66,0.0002054,2]
[364163699,1749024638892,-440.0,0.0002054,2]
[364163700,1749024638908,-410.0,0.0002054,2]
[364163701,1749024638922,-440.0,0.0002054,2]
[364163702,1749024638935,-440.0,0.0002054,2]
[364163703,1749024638947,-440.0,0.0002054,2]
[364163704,1749024638961,-192.78893972,0.0002054,2]
[364163705,1749024638974,-440.0,0.00020541,2]
[364163706,1749024638985,-551.08,0.00020541,2]
[364163707,1749024638997,-440.0,0.00020541,2]
[364163708,1749024639007,-440.0,0.00020541,2]
[364163709,1749024639018,-440.0,0.00020541,2]
[364163710,1749024639030,-163.067828,0.00020548,2]
[364163711,1749024639043,-243.02,0.00020629,10]
[364163712,1749024639054,-207.4,0.00020639,2]
[364163713,1749024639064,-1322.1662941,0.00020639,2]
[364163714,1749024639079,-3677.8337059,0.00020639,2]
[364163715,1749024639091,-400.0,0.00020813,2]
[364163716,1749024639101,-571.49,0.00020813,2]
[364163717,1749024639114,-400.0,0.00020813,2]